fUSD/lending_fUSD_20250201
["ID","MTS","AMOUNT","RATE_DAILY","PERIOD"]
[351171588,1738389050688,-379.58,0.00017897,2]
[351171590,1738389050698,-372.44,0.00017897,2]
[351171593,1738389050708,-500.0,0.00017899,2]
[351171595,1738389050718,-500.0,0.00017899,2]
[351171597,1738389050727,-500.0,0.00017899,2]
[351171599,1738389050736,-500.0,0.00017899,2]
[351171601,1738389050746,-500.0,0.00017899,2]
[351171603,1738389050755,-500.0,0.00017899,2]
[351171604,1738389050764,-1664.57832645,0.000179,2]
[351171607,1738389050773,-2115.9922,0.000179,2]
[351171609,1738389050784,-185.0071,0.000179,2]
[351171611,1738389050796,-150.93704941,0.00017906,2]
[351171613,1738389050805,-854.19068857,0.00017909,2]
[351171615,1738389050815,-150.0,0.00017914,2]
[351171617,1738389050824,-150.0,0.00017929,2]
[351171619,1738389050834,-150.0,0.0001794,2]
[351171621,1738389050844,-10143.23735624,0.00017945,2]
[351171623,1738389050854,-263671.32638937,0.00017945,2]
[351171666,1738389051320,-9518.59284828,0.00017945,2]
[351171668,1738389051331,-1218.59375148,0.00017945,2]
[351171670,1738389051343,-358.269994,0.00017945,2]
[351171672,1738389051358,-29516.40956102,0.00017945,2]
[351171675,1738389051369,-682.36978236,0.00017945,2]
[351171677,1738389051381,-992.64931873,0.00017945,2]
[351171679,1738389051392,-1104.77514956,0.00017945,2]
[351171681,1738389051403,-4836.0,0.00017945,2]
[351171684,1738389051419,-6397.3587318,0.00017945,2]
[351171686,1738389051430,-835.28103547,0.00017945,2]
[351171688,1738389051441,-1192.20706,0.00017945,2]
[351171742,1738389051984,-2322.54917201,0.00017945,2]
[351171744,1738389051995,-48855.8337346,0.00017945,2]
[351171751,1738389052093,-253508.23290799,0.00017945,2]
[351171753,1738389052108,-465.79719933,0.00017945,2]
[351171755,1738389052119,-343.21999969,0.00017945,2]
[351171756,1738389052130,-2678.60272256,0.00017945,2]
[351171758,1738389052141,-1886.86235768,0.00017945,2]
[351171760,1738389052153,-94205.50225584,0.00017945,2]
[351171762,1738389052164,-6853.10103706,0.00017945,2]
[351171763,1738389052174,-2376.0,0.00017945,2]
[351171765,1738389052186,-270.32830976,0.00017945,2]
[351172612,1738389180911,161.13,0.00010137,2]
[351172615,1738389655120,60000.0,0.000101,15]
[351172616,1738389657910,550.0,0.00013,2]
[351172617,1738389686625,50000.0,0.000101,2]
[351172621,1738390102454,222.92,0.00010137,2]
[351172623,1738390135766,-450.37330902,0.00013699,2]
[351172624,1738390135789,-182.01,0.00013699,2]
[351172625,1738390135810,-747.49,0.0001395,2]
[351172626,1738390135832,-150.0,0.00014045,2]
[351172638,1738390232034,-336.50062,0.000148,2]
[351172639,1738390232149,-397.92779334,0.000148,2]
[351172640,1738390232214,-695.54985407,0.000148,2]
[351172641,1738390232225,-570.02173259,0.000148,2]
[351172642,1738390232235,-150.0,0.00014824,2]
[351172643,1738390232246,-600.0,0.00015,2]
[351172644,1738390232257,-150.0,0.00015068,2]
[351172645,1738390232266,-150.0,0.00015068,2]
[351172646,1738390232275,-150.0,0.000152,2]
[351172647,1738390232285,-150.0,0.00015607,2]
[351172648,1738390232294,-150.0,0.00015675,2]
[351172649,1738390232304,-200.0,0.00015816,2]
[351172650,1738390232313,-164.16,0.00015828,2]
[351172651,1738390232322,-544.82,0.0001583,2]
[351172652,1738390232331,-144.18408981,0.00015917,2]
[351172653,1738390232347,-966.96591019,0.00015917,2]
[351172654,1738390232356,-225.57337898,0.00015917,2]
[351172722,1738390240349,-485.5,0.00015917,2]
[351172970,1738390245944,-268.25662102,0.00015917,2]
[351172971,1738390245954,-246.40152398,0.0001592,2]
[351172972,1738390246117,-53.59847602,0.0001592,2]
[351172973,1738390246127,-1515.62,0.00015921,2]
[351172974,1738390246138,-225.72,0.00015961,2]
[351172975,1738390246148,-394.46,0.00015968,2]
[351172976,1738390246158,-150.0,0.00015974,2]
[351172977,1738390246168,-150.0,0.00015977,2]
[351172978,1738390246182,-436.07,0.00015992,2]
[351172979,1738390246192,-1000.0,0.00016,2]
[351172980,1738390246201,-477.65,0.00016046,2]
[351172981,1738390246211,-250.0,0.00016059,2]
[351172982,1738390246221,-300.0,0.00016073,2]
[351172983,1738390246231,-150.0,0.00016113,2]
[351172984,1738390246240,-23900.0,0.00016119,2]
[351172985,1738390246250,-747.49,0.00016214,2]
[351172986,1738390246260,-150.0,0.00016275,2]
[351172987,1738390246269,-150.0,0.00016467,2]
[351172988,1738390246279,-4541.0,0.000165,5]
[351172989,1738390246288,-1526.21,0.00016503,2]
[351172990,1738390246298,-2894.0,0.000166,2]
[351172991,1738390246308,-235.0,0.000166,5]
[351172992,1738390246317,-150.0,0.00016674,2]
[351172993,1738390246327,-222.92,0.00016813,2]
[351172994,1738390246337,-150.0,0.0001684,2]
[351172995,1738390246346,-171.22,0.00016966,2]
[351172996,1738390246356,-650.0,0.00017,2]
[351172997,1738390246366,-150.0,0.0001725,2]
[351172998,1738390246377,-150.0,0.00017257,2]
[351173000,1738390246391,-150.0,0.00017294,2]
[351173001,1738390246401,-150.0,0.00017313,2]
[351173002,1738390246412,-150.0,0.00017335,2]
[351173003,1738390246423,-150.0,0.00017348,2]
[351173004,1738390246432,-150.0,0.00017354,2]
[351173005,1738390246442,-150.0,0.00017376,2]
[351173006,1738390246452,-1000.0,0.00017402,2]
[351173007,1738390246462,-150.0,0.00017404,2]
[351173009,1738390246471,-150.0,0.00017405,2]
[351173011,1738390246480,-150.0,0.00017405,2]
[351173013,1738390246490,-420.0,0.00017407,2]
[351173015,1738390246499,-150.0,0.00017434,2]
[351173017,1738390246508,-150.0,0.0001744,2]
[351173019,1738390246518,-151.21637899,0.00017444,2]
[351173021,1738390246528,-150.0,0.00017471,2]
[351173023,1738390246537,-1148.41627998,0.00017479,2]
[351173025,1738390246547,-150.0,0.00017491,2]
[351173027,1738390246557,-200.0,0.00017497,2]
[351173029,1738390246567,-150.0,0.00017502,2]
[351173031,1738390246576,-1872.41603576,0.00017509,2]
[351173033,1738390246585,-3852.21199028,0.00017514,2]
[351173035,1738390246595,-152.63335777,0.00017527,2]
[351173036,1738390246603,-1872.41603576,0.00017546,2]
[351173039,1738390246613,-150.0,0.00017553,2]
[351173040,1738390246622,-200.0,0.00017554,2]
[351173042,1738390246632,-1148.41627998,0.00017556,2]
[351173044,1738390246641,-1148.41627998,0.00017556,2]
[351173046,1738390246651,-150.0,0.0001756,2]
[351173048,1738390246660,-3852.21199028,0.00017566,2]
[351173050,1738390246670,-150.0,0.00017574,2]
[351173053,1738390246679,-1872.41603576,0.0001758,2]
[351173054,1738390246689,-1872.41603576,0.00017582,2]
[351173057,1738390246698,-3852.21199028,0.00017586,2]
[351173058,1738390246707,-3852.21199028,0.00017594,2]
[351173060,1738390246716,-1148.41627998,0.00017596,2]
[351173062,1738390246725,-150.0,0.00017627,2]
[351173065,1738390246735,-38722.07780414,0.00017634,2]
[351173067,1738390246744,-5000.0,0.00017635,2]
[351173068,1738390246754,-150.0,0.00017653,2]
[351173070,1738390246763,-150.0,0.00017655,2]
[351173073,1738390246773,-150.0,0.0001766,2]
[351173074,1738390246782,-150.0,0.00017674,2]
[351173077,1738390246791,-150.0,0.00017709,2]
[351173078,1738390246801,-1000.0,0.00017723,2]
[351173081,1738390246811,-324.27,0.00017724,2]
[351173083,1738390246820,-1477.04,0.00017733,2]
[351173085,1738390246829,-1590.57,0.00017733,2]
[351173086,1738390246839,-1186.67,0.00017733,2]
[351173089,1738390246848,-500.0,0.00017733,2]
[351173090,1738390246857,-1378.94,0.00017733,2]
[351173092,1738390246867,-3431.91,0.00017733,2]
[351173094,1738390246876,-500.0,0.00017733,2]
[351173096,1738390246885,-1891.01,0.00017733,2]
[351173098,1738390246895,-2943.52,0.00017733,2]
[351173100,1738390246904,-500.0,0.00017733,2]
[351173102,1738390246914,-2438.65,0.00017733,2]
[351173104,1738390246923,-1639.8,0.00017733,2]
[351173106,1738390246932,-500.0,0.00017733,2]
[351173128,1738390247122,-2930.17,0.00017733,2]
[351173130,1738390247133,-1163.58,0.00017733,2]
[351173132,1738390247143,-2096.18,0.00017733,2]
[351173134,1738390247153,-2998.94,0.00017733,2]
[351173136,1738390247163,-1863.38,0.00017733,2]
[351173138,1738390247175,-4881.23,0.00017733,2]
[351173140,1738390247184,-524.89,0.00017733,2]
[351173142,1738390247194,-1306.68,0.00017733,2]
[351173144,1738390247203,-587.32,0.00017733,2]
[351173146,1738390247212,-500.0,0.00017733,2]
[351173148,1738390247223,-511.61,0.00017733,2]
[351173150,1738390247232,-500.0,0.00017733,2]
[351173152,1738390247242,-696.13,0.00017733,2]
[351173154,1738390247251,-500.0,0.00017733,2]
[351173155,1738390247261,-500.0,0.00017733,2]
[351173157,1738390247271,-1470.83,0.00017733,2]
[351173160,1738390247280,-500.0,0.00017733,2]
[351173162,1738390247290,-500.0,0.00017733,2]
[351173163,1738390247299,-222.82889275,0.00017733,2]
[351173166,1738390247308,-689.77,0.00017733,2]
[351173168,1738390247318,-500.0,0.00017733,2]
[351173169,1738390247327,-1005.41,0.00017733,2]
[351173171,1738390247336,-2887.2,0.00017733,2]
[351173173,1738390247345,-2239.1,0.00017733,2]
[351173175,1738390247354,-500.0,0.00017733,2]
[351173177,1738390247364,-591.55,0.00017733,2]
[351173179,1738390247374,-500.0,0.00017734,2]
[351173181,1738390247383,-501.60764308,0.00017734,2]
[351173183,1738390247392,-472.12607604,0.00017734,2]
[351173186,1738390247402,-500.0,0.00017734,2]
[351173188,1738390247411,-500.0,0.00017734,2]
[351173189,1738390247421,-500.0,0.00017734,2]
[351173191,1738390247430,-500.0,0.00017734,2]
[351173193,1738390247439,-500.0,0.00017734,2]
[351173195,1738390247448,-500.0,0.00017734,2]
[351173197,1738390247457,-500.0,0.00017734,2]
[351173199,1738390247466,-774.04,0.00017734,2]
[351173201,1738390247476,-500.0,0.00017734,2]
[351173203,1738390247485,-152.47035859,0.00017734,2]
[351173205,1738390247495,-500.0,0.00017734,2]
[351173207,1738390247504,-500.0,0.00017734,2]
[351173209,1738390247513,-500.0,0.00017734,2]
[351173211,1738390247522,-744.17,0.00017734,2]
[351173213,1738390247532,-500.0,0.00017734,2]
[351173215,1738390247541,-500.0,0.00017734,2]
[351173218,1738390247551,-500.0,0.00017734,2]
[351173220,1738390247561,-716.97,0.00017734,2]
[351173221,1738390247570,-500.0,0.00017734,2]
[351173223,1738390247579,-500.0,0.00017734,2]
[351173225,1738390247588,-500.0,0.00017734,2]
[351173227,1738390247598,-510.56994424,0.00017734,2]
[351173229,1738390247607,-500.0,0.00017734,2]
[351173230,1738390247616,-500.0,0.00017734,2]
[351173231,1738390247625,-521.46017962,0.00017734,2]
[351173232,1738390247634,-500.0,0.00017734,2]
[351173233,1738390247643,-507.22843227,0.00017734,2]
[351173234,1738390247652,-500.0,0.00017734,2]
[351173235,1738390247661,-500.0,0.00017734,2]
[351173236,1738390247670,-500.0,0.00017734,2]
[351173237,1738390247679,-500.0,0.00017734,2]
[351173238,1738390247688,-526.33987423,0.00017734,2]
[351173239,1738390247697,-500.0,0.00017734,2]
[351173240,1738390247706,-741.33,0.00017734,2]
[351173241,1738390247715,-500.0,0.00017734,2]
[351173243,1738390247724,-500.0,0.00017734,2]
[351173245,1738390247733,-500.0,0.00017734,2]
[351173247,1738390247742,-500.0,0.00017734,2]
[351173249,1738390247753,-814.94,0.00017734,2]
[351173251,1738390247762,-536.14838973,0.00017734,2]
[351173253,1738390247771,-500.0,0.00017734,2]
[351173255,1738390247780,-500.0,0.00017734,2]
[351173257,1738390247789,-500.0,0.00017734,2]
[351173259,1738390247799,-500.0,0.00017734,2]
[351173261,1738390247808,-500.0,0.00017734,2]
[351173263,1738390247817,-466.28731239,0.00017734,2]
[351173265,1738390247826,-336.62917855,0.00017734,2]
[351173267,1738390247836,-500.0,0.00017734,2]
[351173269,1738390247845,-500.0,0.00017734,2]
[351173271,1738390247855,-500.0,0.00017734,2]
[351173273,1738390247864,-500.0,0.00017734,2]
[351173275,1738390247873,-500.0,0.00017734,2]
[351173277,1738390247883,-500.0,0.00017734,2]
[351173278,1738390247893,-511.56847206,0.00017734,2]
[351173280,1738390247902,-500.0,0.00017734,2]
[351173282,1738390247911,-217.87,0.00017734,2]
[351173284,1738390247921,-500.0,0.00017734,2]
[351173285,1738390247931,-500.0,0.00017734,2]
[351173286,1738390247940,-500.0,0.00017734,2]
[351173287,1738390247949,-500.0,0.00017734,2]
[351173288,1738390247959,-500.0,0.00017734,2]
[351173289,1738390247970,-500.0,0.00017734,2]
[351173290,1738390247979,-434.033888,0.00017734,2]
[351173291,1738390247989,-500.0,0.00017734,2]
[351173292,1738390247999,-500.0,0.00017734,2]
[351173293,1738390248010,-511.48256454,0.00017734,2]
[351173294,1738390248020,-500.0,0.00017734,2]
[351173295,1738390248029,-500.0,0.00017734,2]
[351173296,1738390248039,-500.0,0.00017734,2]
[351173297,1738390248048,-500.0,0.00017734,2]
[351173298,1738390248058,-500.0,0.00017734,2]
[351173299,1738390248067,-370.918106,0.00017734,2]
[351173300,1738390248077,-233.92033726,0.00017734,2]
[351173301,1738390248086,-523.51821801,0.00017734,2]
[351173302,1738390248096,-500.0,0.00017734,2]
[351173303,1738390248105,-500.0,0.00017734,2]
[351173304,1738390248115,-500.0,0.00017734,2]
[351173305,1738390248124,-500.0,0.00017734,2]
[351173306,1738390248134,-548.95,0.00017734,2]
[351173307,1738390248144,-500.0,0.00017734,2]
[351173308,1738390248153,-500.0,0.00017734,2]
[351173309,1738390248163,-500.0,0.00017734,2]
[351173310,1738390248176,-500.0,0.00017734,2]
[351173311,1738390248185,-500.0,0.00017734,2]
[351173312,1738390248195,-500.0,0.00017734,2]
[351173313,1738390248204,-500.0,0.00017734,2]
[351173314,1738390248215,-868.05,0.00017734,2]
[351173315,1738390248224,-500.0,0.00017734,2]
[351173316,1738390248234,-500.0,0.00017734,2]
[351173317,1738390248243,-500.0,0.00017734,2]
[351173318,1738390248255,-500.0,0.00017734,2]
[351173319,1738390248265,-536.31672552,0.00017734,2]
[351173320,1738390248275,-500.0,0.00017734,2]
[351173321,1738390248284,-500.0,0.00017734,2]
[351173322,1738390248294,-588.4,0.00017734,2]
[351173323,1738390248303,-500.0,0.00017734,2]
[351173324,1738390248313,-500.0,0.00017734,2]
[351173325,1738390248323,-500.0,0.00017734,2]
[351173326,1738390248333,-533.04286456,0.00017734,2]
[351173327,1738390248344,-500.0,0.00017734,2]
[351173328,1738390248354,-511.46889563,0.00017734,2]
[351173329,1738390248363,-500.0,0.00017734,2]
[351173330,1738390248373,-500.0,0.00017734,2]
[351173331,1738390248382,-500.0,0.00017734,2]
[351173332,1738390248392,-222.28874969,0.00017734,2]
[351173333,1738390248402,-538.47538707,0.00017734,2]
[351173334,1738390248411,-500.0,0.00017734,2]
[351173335,1738390248421,-500.0,0.00017734,2]
[351173336,1738390248430,-500.0,0.00017734,2]
[351173337,1738390248439,-599.73,0.00017734,2]
[351173338,1738390248448,-500.0,0.00017734,2]
[351173339,1738390248457,-500.0,0.00017734,2]
[351173340,1738390248466,-500.0,0.00017734,2]
[351173341,1738390248476,-500.0,0.00017734,2]
[351173342,1738390248485,-500.0,0.00017734,2]
[351173343,1738390248495,-500.0,0.00017734,2]
[351173344,1738390248504,-500.0,0.00017734,2]
[351173345,1738390248514,-500.0,0.00017734,2]
[351173346,1738390248524,-500.0,0.00017734,2]
[351173347,1738390248533,-500.0,0.00017734,2]
[351173348,1738390248543,-500.0,0.00017734,2]
[351173349,1738390248552,-500.0,0.00017734,2]
[351173350,1738390248562,-500.0,0.00017734,2]
[351173351,1738390248571,-500.0,0.00017734,2]
[351173352,1738390248581,-544.98227455,0.00017734,2]
[351173353,1738390248590,-500.0,0.00017734,2]
[351173354,1738390248600,-500.0,0.00017734,2]
[351173355,1738390248609,-500.0,0.00017734,2]
[351173356,1738390248618,-509.8,0.00017734,2]
[351173357,1738390248628,-664.7,0.00017734,2]
[351173358,1738390248638,-500.0,0.00017734,2]
[351173359,1738390248647,-500.0,0.00017734,2]
[351173360,1738390248656,-500.0,0.00017734,2]
[351173361,1738390248666,-500.0,0.00017734,2]
[351173362,1738390248675,-500.0,0.00017734,2]
[351173363,1738390248684,-614.68102764,0.00017734,2]
[351173364,1738390248693,-487.43616825,0.00017734,2]
[351173365,1738390248702,-500.0,0.00017734,2]
[351173366,1738390248711,-500.0,0.00017734,2]
[351173367,1738390248720,-500.0,0.00017734,2]
[351173368,1738390248731,-500.0,0.00017734,2]
[351173369,1738390248740,-304.45058785,0.00017734,2]
[351173370,1738390248750,-500.0,0.00017734,2]
[351173371,1738390248760,-613.4,0.00017734,2]
[351173372,1738390248770,-500.0,0.00017734,2]
[351173373,1738390248780,-500.0,0.00017734,2]
[351173374,1738390248790,-525.4221267,0.00017734,2]
[351173375,1738390248800,-500.0,0.00017734,2]
[351173376,1738390248809,-540.21622748,0.00017734,2]
[351173377,1738390248818,-253.01619948,0.00017734,2]
[351173378,1738390248828,-500.0,0.00017734,2]
[351173379,1738390248838,-500.0,0.00017734,2]
[351173380,1738390248847,-660.31,0.00017734,2]
[351173381,1738390248856,-500.0,0.00017734,2]
[351173382,1738390248866,-677.39,0.00017734,2]
[351173383,1738390248875,-179.83879069,0.00017734,2]
[351173384,1738390248885,-500.0,0.00017734,2]
[351173385,1738390248894,-500.0,0.00017734,2]
[351173386,1738390248903,-506.7645681,0.00017734,2]
[351173387,1738390248913,-562.99256476,0.00017734,2]
[351173388,1738390248922,-500.0,0.00017734,2]
[351173389,1738390248931,-504.64,0.00017734,2]
[351173390,1738390248941,-500.0,0.00017734,2]
[351173391,1738390248951,-500.0,0.00017734,2]
[351173392,1738390248961,-500.0,0.00017734,2]
[351173393,1738390248971,-375.20840069,0.00017734,2]
[351173394,1738390248981,-500.0,0.00017734,2]
[351173395,1738390248991,-500.0,0.00017734,2]
[351173396,1738390249001,-500.0,0.00017734,2]
[351173397,1738390249011,-1027.68,0.00017734,2]
[351173398,1738390249020,-500.0,0.00017734,2]
[351173399,1738390249030,-500.0,0.00017734,2]
[351173400,1738390249040,-781.74,0.00017734,2]
[351173401,1738390249049,-500.0,0.00017734,2]
[351173402,1738390249058,-514.51836004,0.00017734,2]
[351173403,1738390249067,-500.0,0.00017734,2]
[351173404,1738390249077,-500.0,0.00017734,2]
[351173405,1738390249086,-500.0,0.00017734,2]
[351173406,1738390249097,-173.93215672,0.00017734,2]
[351173407,1738390249106,-746.81,0.00017734,2]
[351173408,1738390249115,-1315.34,0.00017734,2]
[351173409,1738390249126,-500.0,0.00017734,2]
[351173410,1738390249136,-500.0,0.00017734,2]
[351173411,1738390249147,-1288.76,0.00017734,2]
[351173412,1738390249156,-491.47334088,0.00017734,2]
[351173413,1738390249166,-500.0,0.00017734,2]
[351173414,1738390249179,-511.26538375,0.00017734,2]
[351173415,1738390249188,-500.0,0.00017734,2]
[351173416,1738390249198,-500.0,0.00017734,2]
[351173417,1738390249207,-1273.84,0.00017734,2]
[351173418,1738390249218,-500.0,0.00017734,2]
[351173419,1738390249227,-921.16,0.00017734,2]
[351173420,1738390249237,-500.0,0.00017734,2]
[351173421,1738390249247,-1036.7,0.00017734,2]
[351173422,1738390249256,-2063.29,0.00017734,2]
[351173423,1738390249267,-5429.46,0.00017734,2]
[351173424,1738390249277,-419.81355192,0.00017734,2]
[351173425,1738390249286,-500.0,0.00017734,2]
[351173426,1738390249296,-505.99571447,0.00017734,2]
[351173427,1738390249305,-500.0,0.00017734,2]
[351173428,1738390249315,-519.66,0.00017734,2]
[351173429,1738390249324,-2251.44,0.00017734,2]
[351173430,1738390249333,-1112.54,0.00017734,2]
[351173431,1738390249343,-2106.53917306,0.00017734,2]
[351173432,1738390249388,-150.0,0.00017353,2]
[351173433,1738390249398,-993.52601599,0.00017734,2]
[351173434,1738390249562,-101.38481095,0.00017734,2]
[351173435,1738390249572,-820.3,0.00017734,2]
[351173436,1738390249581,-500.0,0.00017734,2]
[351173437,1738390249591,-500.0,0.00017734,2]
[351173438,1738390249601,-500.0,0.00017734,2]
[351173439,1738390249611,-2311.96,0.00017734,2]
[351173440,1738390249620,-500.0,0.00017734,2]
[351173441,1738390249629,-549.06,0.00017734,2]
[351173442,1738390249639,-1335.52,0.00017734,2]
[351173443,1738390249649,-1387.95,0.00017734,2]
[351173444,1738390249658,-2578.49,0.00017734,2]
[351173445,1738390249668,-500.0,0.00017734,2]
[351173446,1738390249677,-1064.56,0.00017734,2]
[351173447,1738390249687,-500.0,0.00017734,2]
[351173448,1738390249697,-580.12985446,0.00017734,2]
[351173449,1738390249708,-500.0,0.00017734,2]
[351173450,1738390249718,-500.0,0.00017734,2]
[351173451,1738390249728,-2882.91,0.00017734,2]
[351173452,1738390249738,-500.0,0.00017734,2]
[351173453,1738390249747,-3194.42,0.00017734,2]
[351173454,1738390249757,-500.0,0.00017734,2]
[351173455,1738390249766,-776.14,0.00017734,2]
[351173456,1738390249776,-500.0,0.00017734,2]
[351173457,1738390249785,-500.0,0.00017734,2]
[351173458,1738390249794,-500.0,0.00017734,2]
[351173459,1738390249803,-500.0,0.00017734,2]
[351173460,1738390249813,-556.14,0.00017734,2]
[351173461,1738390249822,-2466.46,0.00017734,2]
[351173462,1738390249832,-1537.72,0.00017734,2]
[351173463,1738390249841,-527.82,0.00017734,2]
[351173464,1738390249851,-500.0,0.00017734,2]
[351173465,1738390249861,-500.0,0.00017734,2]
[351173466,1738390249871,-500.0,0.00017734,2]
[351173467,1738390249880,-1655.1,0.00017734,2]
[351173468,1738390249890,-500.0,0.00017734,2]
[351173469,1738390249899,-500.0,0.00017734,2]
[351173470,1738390249908,-2390.86,0.00017734,2]
[351173471,1738390249918,-1266.73,0.00017734,2]
[351173472,1738390249927,-923.86,0.00017734,2]
[351173473,1738390249936,-500.0,0.00017734,2]
[351173474,1738390249946,-2368.15,0.00017734,2]
[351173475,1738390249956,-481.75591748,0.00017734,2]
[351173476,1738390249967,-500.0,0.00017734,2]
[351173477,1738390249978,-500.0,0.00017734,2]
[351173478,1738390249989,-1005.27,0.00017734,2]
[351173479,1738390249999,-2892.13,0.00017734,2]
[351173480,1738390250008,-385.15686226,0.00017734,2]
[351173481,1738390250018,-1025.82,0.00017734,2]
[351173482,1738390250028,-500.0,0.00017734,2]
[351173483,1738390250037,-500.0,0.00017734,2]
[351173484,1738390250046,-226.04969755,0.00017734,2]
[351173485,1738390250056,-500.0,0.00017734,2]
[351173486,1738390250065,-500.0,0.00017734,2]
[351173487,1738390250074,-2740.82,0.00017734,2]
[351173488,1738390250083,-500.0,0.00017734,2]
[351173489,1738390250092,-500.0,0.00017734,2]
[351173490,1738390250102,-1711.14,0.00017734,2]
[351173491,1738390250112,-500.0,0.00017734,2]
[351173492,1738390250121,-500.0,0.00017734,2]
[351173493,1738390250271,-965.14,0.00017734,2]
[351173494,1738390250281,-1963.02,0.00017734,2]
[351173495,1738390250290,-500.0,0.00017734,2]
[351173496,1738390250300,-500.0,0.00017734,2]
[351173497,1738390250309,-1404.59,0.00017734,2]
[351173498,1738390250319,-1070.75,0.00017734,2]
[351173499,1738390250329,-1344.13,0.00017734,2]
[351173500,1738390250339,-380.91170079,0.00017734,2]
[351173501,1738390250348,-503.26865311,0.00017734,2]
[351173502,1738390250357,-515.95959884,0.00017734,2]
[351173503,1738390250366,-2449.2,0.00017734,2]
[351173504,1738390250376,-3059.38,0.00017734,2]
[351173505,1738390250385,-866.43,0.00017734,2]
[351173506,1738390250394,-500.0,0.00017734,2]
[351173507,1738390250403,-500.0,0.00017734,2]
[351173508,1738390250412,-692.91,0.00017734,2]
[351173509,1738390250421,-500.0,0.00017734,2]
[351173510,1738390250431,-547.79885199,0.00017734,2]
[351173511,1738390250441,-500.0,0.00017734,2]
[351173512,1738390250450,-505.65,0.00017734,2]
[351173513,1738390250459,-754.49,0.00017734,2]
[351173514,1738390250469,-1016.55,0.00017734,2]
[351173515,1738390250478,-508.42482244,0.00017734,2]
[351173516,1738390250487,-1334.48,0.00017734,2]
[351173517,1738390250496,-604.87549727,0.00017734,2]
[351173518,1738390250505,-500.0,0.00017734,2]
[351173519,1738390250514,-868.28,0.00017734,2]
[351173520,1738390250525,-514.79960385,0.00017734,2]
[351173521,1738390250535,-1863.92,0.00017734,2]
[351173522,1738390250543,-500.0,0.00017734,2]
[351173523,1738390250553,-500.0,0.00017734,2]
[351173524,1738390250562,-847.34,0.00017734,2]
[351173525,1738390250571,-500.0,0.00017734,2]
[351173526,1738390250580,-169.64924506,0.00017734,2]
[351173527,1738390250589,-966.72,0.00017734,2]
[351173528,1738390250598,-500.0,0.00017734,2]
[351173529,1738390250607,-4043.65,0.00017734,2]
[351173530,1738390250616,-500.0,0.00017734,2]
[351173531,1738390250625,-500.0,0.00017734,2]
[351173532,1738390250634,-500.0,0.00017734,2]
[351173533,1738390250643,-500.0,0.00017734,2]
[351173534,1738390250652,-1123.91,0.00017734,2]
[351173535,1738390250661,-500.0,0.00017734,2]
[351173536,1738390250670,-513.68311177,0.00017734,2]
[351173537,1738390250679,-1225.73,0.00017734,2]
[351173538,1738390250689,-465.19938284,0.00017734,2]
[351173539,1738390250697,-500.0,0.00017734,2]
[351173540,1738390250707,-500.0,0.00017734,2]
[351173541,1738390250716,-500.0,0.00017734,2]
[351173542,1738390250725,-500.0,0.00017734,2]
[351173543,1738390250734,-500.0,0.00017734,2]
[351173544,1738390250743,-1133.85,0.00017734,2]